fUSD/lending_fUSD_20240521
["ID","MTS","AMOUNT","RATE_DAILY","PERIOD"]
[327663058,1716291039632,-525.93,0.00032876,6]
[327663059,1716291039643,-500.0,0.00032876,6]
[327663060,1716291039654,-500.0,0.00032876,6]
[327663061,1716291039665,-500.0,0.00032876,6]
[327663062,1716291039675,-500.0,0.00032876,6]
[327663063,1716291039684,-500.0,0.00032876,6]
[327663064,1716291039695,-500.0,0.00032876,6]
[327663065,1716291039705,-720.6,0.00032876,6]
[327663066,1716291039715,-500.0,0.00032876,6]
[327663067,1716291039725,-660.49,0.00032876,6]
[327663068,1716291039735,-396.85469023,0.00032876,6]
[327663069,1716291039751,-217.46530977,0.00032876,6]
[327663070,1716291039762,-598.77,0.00032876,6]
[327663071,1716291039772,-193.34440885,0.00032876,6]
[327663072,1716291039937,-384.69559115,0.00032876,6]
[327663073,1716291039947,-500.0,0.00032876,6]
[327663074,1716291039957,-500.0,0.00032876,6]
[327663075,1716291039965,-669.57,0.00032876,6]
[327663076,1716291039975,-599.25,0.00032876,6]
[327663077,1716291039986,-607.52,0.00032876,6]
[327663078,1716291040000,-500.0,0.00032876,6]
[327663079,1716291040012,-885.86,0.00032876,6]
[327663080,1716291040022,-750.72,0.00032876,6]
[327663081,1716291040032,-500.0,0.00032876,6]
[327663082,1716291040041,-1040.58,0.00032876,6]
[327663083,1716291040052,-500.19,0.00032876,6]
[327663084,1716291040062,-500.0,0.00032876,6]
[327663085,1716291040072,-765.93,0.00032876,6]
[327663086,1716291040082,-1133.57,0.00032876,6]
[327663087,1716291040092,-1214.5,0.00032876,6]
[327663088,1716291040105,-500.0,0.00032876,6]
[327663089,1716291040115,-748.88,0.00032876,6]
[327663090,1716291040126,-254.06,0.00032876,6]
[327663091,1716291040137,-500.0,0.00032876,6]
[327663092,1716291040148,-779.8,0.00032876,6]
[327663093,1716291040158,-654.02,0.00032876,6]
[327663094,1716291040170,-1169.05,0.00032876,6]
[327663095,1716291040180,-1469.08,0.00032876,6]
[327663096,1716291040191,-713.85,0.00032876,6]
[327663097,1716291040201,-500.0,0.00032876,6]
[327663098,1716291040212,-500.0,0.00032876,6]
[327663099,1716291040222,-1050.85,0.00032876,6]
[327663100,1716291040232,-643.49980453,0.00032876,6]
[327663101,1716291040246,-500.0,0.00032876,6]
[327663102,1716291040256,-1701.94,0.00032876,6]
[327663103,1716291040267,-1325.12,0.00032876,6]
[327663104,1716291040277,-500.0,0.00032876,6]
[327663105,1716291040286,-871.49,0.00032876,6]
[327663106,1716291040296,-500.0,0.00032876,6]
[327663107,1716291040306,-1191.66,0.00032876,6]
[327663108,1716291040316,-648.33,0.00032876,6]
[327663109,1716291040327,-500.0,0.00032876,6]
[327663110,1716291040336,-500.0,0.00032876,6]
[327663111,1716291040347,-500.0,0.00032876,6]
[327663112,1716291040356,-500.0,0.00032876,6]
[327663113,1716291040367,-500.0,0.00032876,6]
[327663114,1716291040376,-500.0,0.00032876,6]
[327663115,1716291040387,-500.0,0.00032876,6]
[327663116,1716291040396,-500.0,0.00032876,6]
[327663117,1716291040407,-500.0,0.00032876,6]
[327663118,1716291040417,-500.0,0.00032876,6]
[327663119,1716291040427,-694.28,0.00032876,6]
[327663120,1716291040437,-1193.96,0.00032876,6]
[327663121,1716291040447,-509.9341759,0.00032876,6]
[327663122,1716291040458,-1424.94,0.00032876,6]
[327663123,1716291040468,-987.24,0.00032876,6]
[327663124,1716291040478,-512.08,0.00032876,6]
[327663125,1716291040488,-590.68860239,0.00032876,6]
[327663126,1716291040501,-500.0,0.00032876,6]
[327663127,1716291040511,-1109.15,0.00032876,6]
[327663128,1716291040523,-500.0,0.00032876,6]
[327663129,1716291040533,-739.04,0.00032876,6]
[327663130,1716291040544,-500.0,0.00032876,6]
[327663131,1716291040555,-500.0,0.00032876,6]
[327663132,1716291040565,-500.0,0.00032876,6]
[327663133,1716291040575,-922.27,0.00032876,6]
[327663134,1716291040585,-1112.34,0.00032876,6]
[327663135,1716291040595,-500.0,0.00032876,6]
[327663136,1716291040607,-906.78,0.00032876,6]
[327663137,1716291040618,-886.11,0.00032876,6]
[327663138,1716291040631,-633.22,0.00032876,6]
[327663139,1716291040642,-500.0,0.00032876,6]
[327663140,1716291040654,-968.42,0.00032876,6]
[327663141,1716291040664,-666.45,0.00032876,6]
[327663142,1716291040675,-1278.63,0.00032876,6]
[327663143,1716291040686,-500.0,0.00032876,6]
[327663144,1716291040698,-500.0,0.00032876,6]
[327663145,1716291040709,-500.0,0.00032876,6]
[327663146,1716291040720,-500.0,0.00032876,6]
[327663147,1716291040730,-500.0,0.00032876,6]
[327663148,1716291040740,-500.0,0.00032876,6]
[327663149,1716291040755,-927.71,0.00032876,6]
[327663150,1716291040765,-500.0,0.00032876,6]
[327663151,1716291040775,-522.59,0.00032876,6]
[327663152,1716291040785,-1441.81,0.00032876,6]
[327663153,1716291040795,-500.0,0.00032876,6]
[327663154,1716291040805,-500.0,0.00032876,6]
[327663155,1716291040815,-500.0,0.00032876,6]
[327663156,1716291040825,-500.0,0.00032876,6]
[327663157,1716291040835,-500.0,0.00032876,6]
[327663158,1716291040846,-1041.41,0.00032876,6]
[327663159,1716291040857,-500.0,0.00032876,6]
[327663160,1716291040867,-510.96,0.00032876,6]
[327663161,1716291040878,-500.0,0.00032876,6]
[327663163,1716291040887,-500.0,0.00032876,6]
[327663165,1716291040897,-500.0,0.00032876,6]
[327663166,1716291040906,-632.29,0.00032876,6]
[327663168,1716291040916,-500.0,0.00032876,6]
[327663169,1716291040926,-567.27,0.00032876,6]
[327663170,1716291040936,-1095.24,0.00032876,6]
[327663171,1716291040945,-503.84065471,0.00032876,6]
[327663172,1716291040955,-500.0,0.00032876,6]
[327663173,1716291040965,-500.0,0.00032876,6]
[327663174,1716291040975,-687.83,0.00032876,6]
[327663175,1716291040985,-500.0,0.00032876,6]
[327663176,1716291040997,-622.0,0.00032876,6]
[327663177,1716291041007,-500.0,0.00032876,6]
[327663178,1716291041017,-500.0,0.00032876,6]
[327663179,1716291041027,-500.0,0.00032876,6]
[327663180,1716291041036,-500.0,0.00032876,6]
[327663181,1716291041046,-500.0,0.00032876,6]
[327663182,1716291041056,-500.0,0.00032876,6]
[327663183,1716291041065,-913.97,0.00032876,6]
[327663184,1716291041075,-507.15905897,0.00032876,6]
[327663185,1716291041084,-181.27,0.00032876,6]
[327663186,1716291041094,-500.0,0.00032876,6]
[327663187,1716291041103,-500.0,0.00032876,6]
[327663188,1716291041114,-500.0,0.00032876,6]
[327663189,1716291041125,-1032.05,0.00032876,6]
[327663190,1716291041136,-2023.13,0.00032876,6]
[327663191,1716291041146,-1202.56,0.00032876,6]
[327663192,1716291041156,-500.0,0.00032876,6]
[327663193,1716291041166,-500.0,0.00032876,6]
[327663194,1716291041180,-500.0,0.00032876,6]
[327663195,1716291041190,-500.0,0.00032876,6]
[327663196,1716291041201,-500.0,0.00032876,6]
[327663197,1716291041212,-335.45888509,0.00032876,6]
[327663198,1716291041222,-500.0,0.00032876,6]
[327663199,1716291041233,-500.0,0.00032876,6]
[327663200,1716291041243,-879.65,0.00032876,6]
[327663201,1716291041255,-331.81,0.00032876,6]
[327663202,1716291041264,-500.0,0.00032876,6]
[327663203,1716291041274,-500.0,0.00032876,6]
[327663204,1716291041284,-500.0,0.00032876,6]
[327663205,1716291041294,-1202.36,0.00032876,6]
[327663206,1716291041306,-2019.13,0.00032876,6]
[327663207,1716291041317,-500.0,0.00032876,6]
[327663208,1716291041327,-1118.5,0.00032876,6]
[327663209,1716291041336,-500.0,0.00032876,6]
[327663210,1716291041347,-1678.3,0.00032876,6]
[327663211,1716291041357,-567.92,0.00032876,6]
[327663212,1716291041366,-506.31241506,0.00032876,6]
[327663213,1716291041376,-500.0,0.00032876,6]
[327663214,1716291041385,-500.0,0.00032876,6]
[327663215,1716291041395,-1701.58,0.00032876,6]
[327663216,1716291041406,-500.0,0.00032876,6]
[327663217,1716291041416,-3042.77,0.00032876,6]
[327663218,1716291041426,-500.0,0.00032876,6]
[327663219,1716291041436,-500.0,0.00032876,6]
[327663220,1716291041447,-500.0,0.00032876,6]
[327663221,1716291041457,-500.0,0.00032876,6]
[327663222,1716291041466,-500.0,0.00032876,6]
[327663223,1716291041476,-799.4,0.00032876,6]
[327663224,1716291041485,-500.0,0.00032876,6]
[327663225,1716291041496,-500.0,0.00032876,6]
[327663226,1716291041506,-500.0,0.00032876,6]
[327663227,1716291041515,-1387.86,0.00032876,6]
[327663228,1716291041525,-1032.3,0.00032876,6]
[327663229,1716291041536,-9918.7,0.00032876,6]
[327663230,1716291041545,-500.0,0.00032876,6]
[327663231,1716291041555,-500.0,0.00032876,6]
[327663232,1716291041564,-500.0,0.00032876,6]
[327663233,1716291041574,-500.0,0.00032876,6]
[327663234,1716291041584,-500.0,0.00032876,6]
[327663235,1716291041593,-500.0,0.00032876,6]
[327663236,1716291041603,-500.0,0.00032876,6]
[327663237,1716291041619,-1560.23,0.00032876,6]
[327663238,1716291041629,-500.0,0.00032876,6]
[327663239,1716291041639,-500.0,0.00032876,6]
[327663240,1716291041648,-500.0,0.00032876,6]
[327663241,1716291041659,-570.7,0.00032876,6]
[327663242,1716291041668,-500.0,0.00032876,6]
[327663243,1716291041678,-500.0,0.00032876,6]
[327663244,1716291041687,-500.0,0.00032876,6]
[327663245,1716291041698,-510.41,0.00032876,6]
[327663246,1716291041708,-500.0,0.00032876,6]
[327663247,1716291041718,-500.0,0.00032876,6]
[327663248,1716291041727,-2881.72,0.00032876,6]
[327663249,1716291041736,-500.0,0.00032876,6]
[327663250,1716291041748,-509.63734602,0.00032876,6]
[327663251,1716291041757,-1539.47,0.00032876,6]
[327663252,1716291041767,-1230.29,0.00032876,6]
[327663253,1716291041777,-500.0,0.00032876,6]
[327663254,1716291041786,-1587.89,0.00032876,6]
[327663255,1716291041795,-236.36591141,0.00032876,6]
[327663256,1716291041806,-280.2293932,0.00032876,6]
[327663257,1716291041816,-1664.96,0.00032876,6]
[327663258,1716291041825,-827.83,0.00032876,6]
[327663259,1716291041835,-2149.87,0.00032876,6]
[327663260,1716291041845,-500.0,0.00032876,6]
[327663261,1716291041855,-1818.33,0.00032876,6]
[327663262,1716291041865,-500.0,0.00032876,6]
[327663263,1716291041874,-10289.26,0.00032876,6]
[327663264,1716291041884,-500.0,0.00032876,6]
[327663265,1716291041893,-1393.08,0.00032876,6]
[327663266,1716291041903,-500.0,0.00032876,6]
[327663267,1716291041913,-521.65516072,0.00032876,6]
[327663268,1716291041923,-500.0,0.00032876,6]
[327663269,1716291041933,-718.55,0.00032876,6]
[327663270,1716291041942,-1382.61,0.00032876,6]
[327663271,1716291041952,-528.06401851,0.00032876,6]
[327663272,1716291041962,-523.28049615,0.00032876,6]
[327663273,1716291041971,-966.19,0.00032876,6]
[327663274,1716291041981,-2970.16,0.00032876,6]
[327663275,1716291041991,-7073.63,0.00032876,6]
[327663276,1716291042004,-1919.39,0.00032876,6]
[327663277,1716291042014,-500.0,0.00032876,6]
[327663278,1716291042024,-500.0,0.00032876,6]
[327663279,1716291042034,-802.52,0.00032876,6]
[327663280,1716291042043,-500.0,0.00032876,6]
[327663281,1716291042053,-1163.31,0.00032876,6]
[327663282,1716291042063,-500.0,0.00032876,6]
[327663283,1716291042072,-500.0,0.00032876,6]
[327663284,1716291042082,-534.59,0.00032876,6]
[327663285,1716291042091,-1570.45,0.00032876,6]
[327663286,1716291042101,-500.0,0.00032876,6]
[327663287,1716291042111,-1744.34,0.00032876,6]
[327663288,1716291042120,-500.0,0.00032876,6]
[327663289,1716291042130,-505.58177979,0.00032876,6]
[327663290,1716291042139,-2152.68,0.00032876,6]
[327663291,1716291042149,-500.0,0.00032876,6]
[327663292,1716291042158,-929.42,0.00032876,6]
[327663293,1716291042168,-500.0,0.00032876,6]
[327663294,1716291042178,-500.0,0.00032876,6]
[327663295,1716291042188,-500.0,0.00032876,6]
[327663296,1716291042198,-8045.38,0.00032876,6]
[327663297,1716291042208,-500.0,0.00032876,6]
[327663298,1716291042217,-3088.9,0.00032876,6]
[327663299,1716291042228,-1331.09,0.00032876,6]
[327663300,1716291042238,-1060.15,0.00032876,6]
[327663301,1716291042251,-500.0,0.00032876,6]
[327663302,1716291042260,-586.61264887,0.00032876,6]
[327663303,1716291042270,-1146.57,0.00032876,6]
[327663304,1716291042280,-2303.35,0.00032876,6]
[327663305,1716291042290,-1223.19,0.00032876,6]
[327663306,1716291042300,-500.0,0.00032876,6]
[327663307,1716291042310,-500.0,0.00032876,6]
[327663308,1716291042320,-500.0,0.00032876,6]
[327663309,1716291042329,-500.0,0.00032876,6]
[327663310,1716291042339,-541.76534964,0.00032876,6]
[327663311,1716291042348,-500.0,0.00032876,6]
[327663312,1716291042358,-500.0,0.00032876,6]
[327663313,1716291042367,-500.0,0.00032876,6]
[327663314,1716291042376,-500.0,0.00032876,6]
[327663315,1716291042386,-500.0,0.00032876,6]
[327663316,1716291042395,-676.3,0.00032876,6]
[327663317,1716291042405,-4145.22,0.00032876,6]
[327663318,1716291042415,-2570.19,0.00032876,6]
[327663319,1716291042424,-626.31,0.00032876,6]
[327663320,1716291042433,-1599.09,0.00032876,6]
[327663321,1716291042443,-5364.66,0.00032876,6]
[327663322,1716291042452,-500.0,0.00032876,6]
[327663323,1716291042462,-500.0,0.00032876,6]
[327663324,1716291042472,-500.0,0.00032876,6]
[327663325,1716291042481,-6984.37,0.00032876,6]
[327663326,1716291042491,-500.0,0.00032876,6]
[327663327,1716291042503,-500.0,0.00032876,6]
[327663328,1716291042512,-500.0,0.00032876,6]
[327663329,1716291042522,-942.14,0.00032876,6]
[327663330,1716291042532,-689.97,0.00032876,6]
[327663331,1716291042541,-500.0,0.00032876,6]
[327663332,1716291042551,-500.0,0.00032876,6]
[327663333,1716291042561,-3692.28,0.00032876,6]
[327663334,1716291042571,-1418.88,0.00032876,6]
[327663335,1716291042583,-500.0,0.00032876,6]
[327663336,1716291042592,-509.53,0.00032876,6]
[327663337,1716291042603,-6968.22,0.00032876,6]
[327663338,1716291042613,-500.0,0.00032876,6]
[327663339,1716291042627,-500.0,0.00032876,6]
[327663340,1716291042637,-500.0,0.00032876,6]
[327663341,1716291042647,-500.0,0.00032876,6]
[327663342,1716291042658,-500.0,0.00032876,6]
[327663343,1716291042669,-500.0,0.00032876,6]
[327663344,1716291042678,-500.0,0.00032876,6]
[327663345,1716291042688,-510.41654124,0.00032876,6]
[327663346,1716291042701,-3478.64,0.00032876,6]
[327663347,1716291042711,-5325.1,0.00032876,6]
[327663348,1716291042720,-1000.13,0.00032876,6]
[327663349,1716291042730,-500.0,0.00032876,6]
[327663350,1716291042740,-686.54,0.00032876,6]
[327663351,1716291042753,-4452.95,0.00032876,6]
[327663352,1716291042763,-1958.88,0.00032876,6]
[327663353,1716291042773,-12875.53,0.00032876,6]
[327663354,1716291042783,-500.0,0.00032876,6]
[327663355,1716291042793,-507.68,0.00032876,6]
[327663356,1716291042803,-500.0,0.00032876,6]
[327663357,1716291042814,-3223.22,0.00032876,6]
[327663358,1716291042824,-2260.18,0.00032876,6]
[327663359,1716291042834,-802.75,0.00032876,6]
[327663360,1716291042843,-500.0,0.00032876,6]
[327663361,1716291042853,-1830.99,0.00032876,6]
[327663362,1716291042863,-1094.45,0.00032876,6]
[327663363,1716291042873,-500.0,0.00032876,6]
[327663364,1716291042882,-500.0,0.00032876,6]
[327663365,1716291042892,-1349.13,0.00032876,6]
[327663366,1716291042902,-500.0,0.00032876,6]
[327663367,1716291042912,-500.0,0.00032876,6]
[327663368,1716291042922,-3067.89,0.00032876,6]
[327663369,1716291042933,-2569.11,0.00032876,6]
[327663370,1716291042943,-513.03,0.00032876,6]
[327663371,1716291042952,-500.0,0.00032876,6]
[327663372,1716291042962,-1618.62,0.00032876,6]
[327663373,1716291042972,-500.0,0.00032876,6]
[327663374,1716291042982,-540.85091675,0.00032876,4]
[327663375,1716291042992,-518.15,0.00032876,6]
[327663376,1716291043003,-500.0,0.00032876,6]
[327663377,1716291043013,-1596.78,0.00032876,6]
[327663378,1716291043023,-1131.22,0.00032876,6]
[327663379,1716291043032,-961.79,0.00032876,6]
[327663380,1716291043041,-686.26,0.00032876,6]
[327663381,1716291043051,-500.0,0.00032876,6]
[327663382,1716291043061,-663.94,0.00032876,6]
[327663383,1716291043070,-500.0,0.00032876,6]
[327663384,1716291043079,-3508.44,0.00032876,6]
[327663385,1716291043089,-500.0,0.00032876,6]
[327663386,1716291043098,-2042.42,0.00032876,6]
[327663387,1716291043109,-2559.66,0.00032876,6]
[327663388,1716291043118,-2144.2,0.00032876,6]
[327663389,1716291043128,-3088.3,0.00032876,6]
[327663390,1716291043137,-500.0,0.00032876,6]
[327663391,1716291043147,-541.58,0.00032876,6]
[327663392,1716291043156,-500.0,0.00032876,6]
[327663393,1716291043165,-857.6,0.00032876,6]
[327663394,1716291043175,-2771.03,0.00032876,6]
[327663395,1716291043184,-500.0,0.00032876,6]
[327663396,1716291043194,-500.0,0.00032876,6]
[327663397,1716291043203,-500.09138599,0.00032876,6]
[327663398,1716291043213,-20774.01,0.00032876,6]
[327663399,1716291043222,-500.0,0.00032876,6]
[327663400,1716291043232,-722.94,0.00032876,6]
[327663401,1716291043242,-976.39,0.00032876,6]
[327663402,1716291043253,-517.4,0.00032876,6]
[327663403,1716291043262,-2952.08,0.00032876,6]
[327663404,1716291043271,-500.0,0.00032876,6]
[327663405,1716291043281,-1971.69,0.00032876,6]
[327663406,1716291043290,-2359.71,0.00032876,6]
[327663407,1716291043300,-500.0,0.00032876,6]
[327663408,1716291043309,-1229.51,0.00032876,6]
[327663409,1716291043319,-1127.28,0.00032876,6]
[327663410,1716291043328,-549.85,0.00032876,6]
[327663411,1716291043337,-1075.86,0.00032876,6]
[327663412,1716291043347,-1806.28,0.00032876,6]
[327663413,1716291043356,-500.0,0.00032876,6]
[327663414,1716291043366,-2374.57,0.00032876,6]
[327663415,1716291043375,-4545.76,0.00032876,6]
[327663416,1716291043385,-2269.94,0.00032876,6]
[327663417,1716291043394,-500.0,0.00032876,6]
[327663418,1716291043403,-3166.66,0.00032876,6]
[327663419,1716291043414,-500.0,0.00032876,6]
[327663420,1716291043423,-500.0,0.00032876,6]
[327663421,1716291043432,-2075.28,0.00032876,6]
[327663422,1716291043442,-514.28,0.00032876,6]
[327663423,1716291043451,-52301.07,0.00032876,6]
[327663424,1716291043460,-1796.5,0.00032876,6]
[327663425,1716291043470,-500.0,0.00032876,6]
[327663426,1716291043479,-508.46312574,0.00032876,6]
[327663427,1716291043488,-500.0,0.00032876,6]
[327663428,1716291043499,-500.0,0.00032876,6]
[327663429,1716291043508,-5522.34,0.00032876,6]
[327663430,1716291043517,-500.0,0.00032876,6]
[327663431,1716291043526,-590.89,0.00032876,6]
[327663432,1716291043535,-500.0,0.00032876,6]
[327663433,1716291043545,-504.60651082,0.00032876,6]
[327663434,1716291043554,-500.0,0.00032876,6]
[327663435,1716291043564,-500.0,0.00032876,6]
[327663436,1716291043573,-1642.84,0.00032876,6]
[327663437,1716291043583,-500.0,0.00032876,6]
[327663438,1716291043592,-1214.58,0.00032876,6]
[327663439,1716291043602,-2780.51,0.00032876,6]
[327663440,1716291043616,-500.0,0.00032876,6]
[327663441,1716291043626,-9822.52,0.00032876,6]
[327663442,1716291043636,-1043.71,0.00032876,6]
[327663443,1716291043645,-500.0,0.00032876,6]
[327663444,1716291043656,-4048.99,0.00032876,6]
[327663445,1716291043665,-1329.98,0.00032876,6]
[327663446,1716291043675,-500.0,0.00032876,6]
[327663447,1716291043685,-500.0,0.00032876,6]
[327663448,1716291043696,-500.0,0.00032876,6]
[327663449,1716291043706,-4258.01,0.00032876,6]
[327663450,1716291043715,-500.0,0.00032876,6]
[327663451,1716291043725,-500.0,0.00032876,6]
[327663452,1716291043861,-4740.41,0.00032876,6]
[327663453,1716291043871,-500.0,0.00032876,6]
[327663454,1716291043881,-1588.58,0.00032876,6]
[327663455,1716291043891,-164.45478355,0.00032879,7]
[327663456,1716291043901,-500.0,0.00032879,7]
[327663457,1716291043911,-500.0,0.00032879,7]
[327663458,1716291043920,-500.0,0.00032879,7]
[327663459,1716291043930,-383.62950102,0.00032879,7]
[327663460,1716291043941,-166.063965,0.00032884,6]
[327663461,1716291043950,-210.86154428,0.00032886,4]
[327663462,1716291043960,-9300.0,0.000329,12]
[327663463,1716291043969,-893.39,0.00032923,2]
[327663464,1716291043979,-154.16360863,0.00032981,2]
[327663465,1716291043988,-549.88302686,0.00032983,6]
[327663466,1716291044001,-500.0,0.00032983,6]
[327663467,1716291044011,-224400.689172,0.00032984,19]
[327663468,1716291044019,-573.01448172,0.00032984,6]
[327663469,1716291044030,-502.59922283,0.00032984,2]
[327663470,1716291044039,-500.0,0.00032984,6]
[327663471,1716291044049,-505.50923755,0.00032984,6]
[327663472,1716291044059,-500.0,0.00032984,6]
[327663473,1716291044069,-500.0,0.00032984,6]
[327663474,1716291044079,-520.83,0.00032984,6]
[327663475,1716291044088,-1056.66,0.00032984,6]
[327663476,1716291044098,-500.0,0.00032984,6]
[327663477,1716291044107,-616.0,0.00032984,6]
[327663478,1716291044117,-500.0,0.00032984,6]
[327663479,1716291044127,-203.35956527,0.00032984,6]
[327663480,1716291044138,-500.0,0.00032984,6]
[327663481,1716291044148,-529.04093553,0.00032984,6]
[327663482,1716291044159,-500.0,0.00032984,6]
[327663483,1716291044179,-500.0,0.00032984,6]
[327663484,1716291044200,-538.99238335,0.00032984,6]
[327663485,1716291044209,-500.0,0.00032984,6]
[327663486,1716291044219,-353.12893044,0.00032984,6]
[327663487,1716291044229,-500.0,0.00032984,6]
[327663488,1716291044238,-524.77008915,0.00032984,6]
[327663489,1716291044249,-500.0,0.00032984,6]
[327663490,1716291044259,-500.0,0.00032984,6]
[327663491,1716291044268,-539.3,0.00032984,6]
[327663492,1716291044278,-579.47,0.00032984,6]
[327663493,1716291044288,-516.67670193,0.00032984,6]
[327663494,1716291044298,-500.0,0.00032984,6]
[327663496,1716291044307,-504.77992568,0.00032984,6]
[327663498,1716291044317,-504.63846971,0.00032984,6]
[327663500,1716291044327,-500.0,0.00032984,6]
[327663502,1716291044336,-576.73,0.00032984,6]
[327663504,1716291044346,-800.63,0.00032984,6]
[327663506,1716291044356,-500.0,0.00032984,6]
[327663508,1716291044366,-510.59183713,0.00032984,6]
[327663510,1716291044376,-500.0,0.00032984,6]
[327663512,1716291044385,-504.4499338,0.00032984,6]
[327663513,1716291044395,-500.0,0.00032984,6]
[327663515,1716291044404,-524.84593256,0.00032984,6]
[327663517,1716291044413,-369.19191522,0.00032984,6]
[327663518,1716291044423,-522.57572468,0.00032984,6]
[327663520,1716291044433,-500.0,0.00032984,6]
[327663522,1716291044442,-500.0,0.00032984,6]
[327663524,1716291044452,-522.5856865,0.00032984,6]
[327663526,1716291044462,-500.0,0.00032984,6]
[327663528,1716291044471,-522.90181057,0.00032984,6]
[327663530,1716291044480,-500.0,0.00032984,6]
[327663531,1716291044490,-500.0,0.00032984,6]
[327663533,1716291044501,-500.0,0.00032984,6]
[327663534,1716291044511,-937.76,0.00032984,6]
[327663535,1716291044521,-500.0,0.00032984,6]
[327663536,1716291044531,-500.0,0.00032984,6]
[327663537,1716291044540,-525.51491967,0.00032984,6]
[327663538,1716291044549,-612.13,0.00032984,6]
[327663539,1716291044559,-543.57145947,0.00032984,6]
[327663540,1716291044568,-511.23,0.00032984,6]
[327663541,1716291044578,-500.0,0.00032984,6]
[327663542,1716291044588,-500.0,0.00032984,6]
[327663543,1716291044598,-581.57,0.00032984,6]
[327663544,1716291044608,-500.0,0.00032984,6]
[327663545,1716291044618,-597.74,0.00032984,6]
[327663546,1716291044630,-583.32563207,0.00032984,6]
[327663547,1716291044640,-500.0,0.00032984,30]
[327663548,1716291044651,-548.19143728,0.00032984,6]
[327663549,1716291044660,-883.63,0.00032984,6]
[327663550,1716291044670,-924.94,0.00032984,6]
[327663551,1716291044680,-500.0,0.00032984,6]
[327663552,1716291044689,-550.47454139,0.00032984,6]
[327663553,1716291044700,-627.09387811,0.00032984,6]
[327663554,1716291044710,-500.0,0.00032984,6]
[327663555,1716291044719,-500.0,0.00032984,6]
[327663556,1716291044729,-500.0,0.00032984,6]
[327663557,1716291044739,-987.94,0.00032984,6]
[327663558,1716291044749,-500.0,0.00032984,6]
[327663559,1716291044758,-500.0,0.00032984,6]
[327663560,1716291044768,-500.0,0.00032984,6]
[327663561,1716291044777,-500.0,0.00032984,6]
[327663562,1716291044787,-500.0,0.00032984,6]
[327663563,1716291044798,-355.51,0.00032984,6]
[327663564,1716291044807,-751.32,0.00032984,6]
[327663565,1716291044818,-1045.5,0.00032984,6]
[327663568,1716291044827,-700.73,0.00032984,6]
[327663569,1716291044838,-500.0,0.00032984,6]
[327663571,1716291044848,-1091.22,0.00032984,6]
[327663575,1716291044858,-500.0,0.00032984,6]
[327663578,1716291044868,-500.0,0.00032984,6]
[327663581,1716291044879,-1245.83,0.00032984,6]
[327663584,1716291044889,-500.0,0.00032984,6]
[327663587,1716291044899,-502.93253712,0.00032984,6]
[327663590,1716291044910,-500.0,0.00032984,6]
[327663591,1716291044920,-500.0,0.00032984,2]
[327663592,1716291044930,-500.0,0.00032984,6]
[327663594,1716291044941,-500.0,0.00032984,6]
[327663595,1716291044951,-1292.22,0.00032984,6]